[Event "*** Titled Tuesday Blitz"]
[Site "Chess.com"]
[Date "2019.02.05"]
[Round "10"]
[White "LucaBrasi1968"]
[Black "Tiqr777"]
[Result "1-0"]
[WhiteElo "2471"]
[BlackElo "2559"]
[TimeControl "180+2"]
[EndTime "15:26:31 PST"]
[Termination "LucaBrasi1968 won by resignation"]

1. e4 {[%clk 0:02:47.9]} 1... e5 {[%clk 0:02:59.3]} 2. Nf3 {[%clk 0:02:48]} 2...
Nc6 {[%clk 0:03:00.2]} 3. d4 {[%clk 0:02:48.5]} 3... exd4 {[%clk 0:03:00.4]} 4.
Nxd4 {[%clk 0:02:50.4]} 4... Bc5 {[%clk 0:03:01.6]} 5. Be3 {[%clk 0:02:50.3]}
5... Qf6 {[%clk 0:03:01.2]} 6. c3 {[%clk 0:02:43.9]} 6... Nge7 {[%clk
0:03:01.5]} 7. Bc4 {[%clk 0:02:44.4]} 7... O-O {[%clk 0:03:00.7]} 8. O-O {[%clk
0:02:45]} 8... d6 {[%clk 0:02:52.5]} 9. Nxc6 {[%clk 0:02:38.4]} 9... Nxc6 {[%clk
0:02:51.8]} 10. Bxc5 {[%clk 0:02:39.1]} 10... dxc5 {[%clk 0:02:52.8]} 11. f4
{[%clk 0:02:40.1]} 11... Rd8 {[%clk 0:02:51.2]} 12. Qe2 {[%clk 0:02:37.9]} 12...
Qh6 {[%clk 0:02:47.9]} 13. Nd2 {[%clk 0:02:31.8]} 13... Be6 {[%clk 0:02:48.5]}
14. Rad1 {[%clk 0:02:09.1]} 14... a6 {[%clk 0:02:40.6]} 15. Bxe6 {[%clk
0:01:57.9]} 15... Qxe6 {[%clk 0:02:40.7]} 16. Qc4 {[%clk 0:01:56.8]} 16... Qxc4
{[%clk 0:02:35.8]} 17. Nxc4 {[%clk 0:01:57.3]} 17... b5 {[%clk 0:02:37.1]} 18.
Ne3 {[%clk 0:01:58]} 18... Ne7 {[%clk 0:02:37.7]} 19. Kf2 {[%clk 0:01:57.7]}
19... Kf8 {[%clk 0:02:36.7]} 20. Kf3 {[%clk 0:01:59]} 20... Ke8 {[%clk
0:02:37.3]} 21. e5 {[%clk 0:02:00.3]} 21... c6 {[%clk 0:02:30.3]} 22. Ke4 {[%clk
0:02:01.2]} 22... Rxd1 {[%clk 0:02:29.1]} 23. Rxd1 {[%clk 0:02:01.9]} 23... Rd8
{[%clk 0:02:30.4]} 24. Rxd8+ {[%clk 0:02:02.3]} 24... Kxd8 {[%clk 0:02:31.7]}
25. f5 {[%clk 0:02:03.2]} 25... Kd7 {[%clk 0:02:31.1]} 26. g4 {[%clk 0:02:03.9]}
26... Nc8 {[%clk 0:02:31.3]} 27. c4 {[%clk 0:02:01.4]} 27... Nb6 {[%clk
0:02:30.9]} 28. b3 {[%clk 0:02:02.6]} 28... a5 {[%clk 0:02:31.7]} 29. h4 {[%clk
0:02:02.5]} 29... a4 {[%clk 0:02:28]} 30. h5 {[%clk 0:01:57.7]} 30... h6 {[%clk
0:02:28.1]} 31. Kd3 {[%clk 0:01:54.8]} 31... f6 {[%clk 0:02:25]} 32. e6+ {[%clk
0:01:55]} 32... Kd6 {[%clk 0:02:25.5]} 33. Nc2 {[%clk 0:01:45.3]} 33... Nc8
{[%clk 0:02:20.8]} 34. Na3 {[%clk 0:01:40]} 34... b4 {[%clk 0:02:20.3]} 35. Nc2
{[%clk 0:01:40.4]} 35... a3 {[%clk 0:02:21.3]} 36. Ne1 {[%clk 0:01:38.4]} 36...
Ke5 {[%clk 0:02:21.1]} 37. Ke3 {[%clk 0:01:36.9]} 37... Nb6 {[%clk 0:02:21.3]}
38. Nd3+ {[%clk 0:01:37.3]} 38... Kd6 {[%clk 0:02:21.6]} 39. Nxc5 {[%clk
0:01:35.8]} 39... Nc8 {[%clk 0:01:29.8]} 40. Kd4 {[%clk 0:01:35.5]} 40... Kc7
{[%clk 0:01:26.1]} 41. Nd3 {[%clk 0:01:33.9]} 41... Kb6 {[%clk 0:01:26.1]} 42.
Nc5 {[%clk 0:01:20.8]} 42... Ne7 {[%clk 0:01:25.8]} 43. Nd7+ {[%clk 0:01:19.9]}
43... Kc7 {[%clk 0:01:24.4]} 44. Kc5 {[%clk 0:01:21]} 1-0

[Event "*** Titled Tuesday Blitz"]
[Site "Chess.com"]
[Date "2019.02.05"]
[Round "10"]
[White "Satscho"]
[Black "mousavian_hamed"]
[Result "1-0"]
[WhiteElo "2342"]
[BlackElo "2476"]
[TimeControl "180+2"]
[EndTime "15:26:38 PST"]
[Termination "Satscho won by resignation"]

1. e4 {[%clk 0:03:01.9]} 1... c5 {[%clk 0:02:58.3]} 2. Nf3 {[%clk 0:02:59.5]}
2... Nc6 {[%clk 0:02:58]} 3. Bb5 {[%clk 0:02:59.5]} 3... g6 {[%clk 0:02:58.4]}
4. Bxc6 {[%clk 0:02:55.9]} 4... dxc6 {[%clk 0:02:58.8]} 5. d3 {[%clk 0:02:55.9]}
5... Bg7 {[%clk 0:02:58.2]} 6. h3 {[%clk 0:02:57.3]} 6... Nf6 {[%clk 0:02:58.1]}
7. O-O {[%clk 0:02:51.4]} 7... Nd7 {[%clk 0:02:57.7]} 8. Nc3 {[%clk 0:02:51.9]}
8... e5 {[%clk 0:02:57.8]} 9. Be3 {[%clk 0:02:53]} 9... b6 {[%clk 0:02:57.8]}
10. Qd2 {[%clk 0:02:54.1]} 10... Qe7 {[%clk 0:02:45.3]} 11. Bh6 {[%clk
0:02:54.6]} 11... Bxh6 {[%clk 0:02:45.6]} 12. Qxh6 {[%clk 0:02:56.5]} 12... f6
{[%clk 0:02:46.4]} 13. Nh4 {[%clk 0:02:52.3]} 13... Nf8 {[%clk 0:02:45.2]} 14.
Rae1 {[%clk 0:02:47.3]} 14... g5 {[%clk 0:02:36.8]} 15. Nf5 {[%clk 0:02:38.4]}
15... Bxf5 {[%clk 0:02:36.9]} 16. exf5 {[%clk 0:02:40.3]} 16... O-O-O {[%clk
0:02:25.2]} 17. Ne4 {[%clk 0:02:34.3]} 17... Nd7 {[%clk 0:02:24.3]} 18. Qh5
{[%clk 0:02:33.5]} 18... Kc7 {[%clk 0:02:21.5]} 19. c3 {[%clk 0:02:32.9]} 19...
Qg7 {[%clk 0:02:18.6]} 20. Rd1 {[%clk 0:02:23.9]} 20... Rhe8 {[%clk 0:02:15.8]}
21. Rfe1 {[%clk 0:02:24.3]} 21... Nf8 {[%clk 0:02:09.7]} 22. a4 {[%clk
0:02:23.4]} 22... Rd5 {[%clk 0:02:02.9]} 23. a5 {[%clk 0:02:17.6]} 23... Red8
{[%clk 0:02:02.3]} 24. axb6+ {[%clk 0:02:07.5]} 24... axb6 {[%clk 0:02:01.4]}
25. Ra1 {[%clk 0:02:08.9]} 25... Kb7 {[%clk 0:02:00.3]} 26. Ra4 {[%clk
0:02:09.9]} 26... b5 {[%clk 0:01:21.8]} 27. Ra5 {[%clk 0:02:08.1]} 27... Kb6
{[%clk 0:01:17.3]} 28. Rea1 {[%clk 0:02:08.9]} 28... Qb7 {[%clk 0:01:17.8]} 29.
c4 {[%clk 0:02:01.2]} 29... Rxd3 {[%clk 0:01:13.3]} 30. Ra6+ {[%clk 0:02:01.9]}
30... Kc7 {[%clk 0:01:02.7]} 31. Nxc5 {[%clk 0:01:57.6]} 31... Qc8 {[%clk
0:00:57.1]} 32. Nxd3 {[%clk 0:01:33.5]} 32... Rxd3 {[%clk 0:00:55.9]} 33. cxb5
{[%clk 0:01:30.1]} 33... Qxf5 {[%clk 0:00:52.8]} 34. Rxc6+ {[%clk 0:01:28.2]}
34... Kb7 {[%clk 0:00:51.1]} 35. Qf7+ {[%clk 0:01:26.3]} 35... Nd7 {[%clk
0:00:49.3]} 36. Rac1 {[%clk 0:01:27.1]} 36... Rd2 {[%clk 0:00:42]} 37. Rc7+
{[%clk 0:01:26.2]} 37... Kb6 {[%clk 0:00:41.3]} 38. R1c6+ {[%clk 0:01:27]} 38...
Ka5 {[%clk 0:00:38.8]} 39. Qa2+ {[%clk 0:01:27.3]} 39... Kb4 {[%clk 0:00:37.7]}
40. Qc4+ {[%clk 0:01:27.4]} 1-0

[Event "*** Titled Tuesday Blitz"]
[Site "Chess.com"]
[Date "2019.02.05"]
[Round "10"]
[White "VerdeNotte"]
[Black "WPWPWP-2015"]
[Result "1-0"]
[WhiteElo "2825"]
[BlackElo "2334"]
[TimeControl "180+2"]
[EndTime "15:26:44 PST"]
[Termination "VerdeNotte won on time"]

1. a3 {[%clk 0:03:01.9]} 1... e5 {[%clk 0:02:59.8]} 2. c4 {[%clk 0:03:02.2]}
2... Nf6 {[%clk 0:03:00.4]} 3. Nc3 {[%clk 0:03:00.9]} 3... d5 {[%clk 0:03:00.2]}
4. cxd5 {[%clk 0:03:01.7]} 4... Nxd5 {[%clk 0:03:01.3]} 5. Nf3 {[%clk 0:03:03]}
5... Nc6 {[%clk 0:03:01.4]} 6. g3 {[%clk 0:03:04]} 6... Be6 {[%clk 0:03:01.5]}
7. Bg2 {[%clk 0:03:04.8]} 7... Be7 {[%clk 0:03:02.3]} 8. O-O {[%clk 0:03:04.3]}
8... O-O {[%clk 0:03:02.8]} 9. d4 {[%clk 0:03:05.6]} 9... exd4 {[%clk
0:02:58.2]} 10. Nxd4 {[%clk 0:03:06.3]} 10... Nxd4 {[%clk 0:02:58.6]} 11. Nxd5
{[%clk 0:03:02.4]} 11... Bxd5 {[%clk 0:02:57.4]} 12. Qxd4 {[%clk 0:03:03.2]}
12... Bxg2 {[%clk 0:02:57.7]} 13. Qxd8 {[%clk 0:03:04.4]} 13... Rfxd8 {[%clk
0:02:55.2]} 14. Kxg2 {[%clk 0:03:06.3]} 14... Bf6 {[%clk 0:02:55.4]} 15. Rb1
{[%clk 0:03:02.4]} 15... c5 {[%clk 0:02:54.6]} 16. Be3 {[%clk 0:02:59]} 16... c4
{[%clk 0:02:54.7]} 17. Rfc1 {[%clk 0:02:58.6]} 17... b5 {[%clk 0:02:54.1]} 18.
Rc2 {[%clk 0:02:59.9]} 18... Rd5 {[%clk 0:02:38.6]} 19. a4 {[%clk 0:02:44.2]}
19... a6 {[%clk 0:02:38.7]} 20. Ra1 {[%clk 0:02:45.4]} 20... Rb8 {[%clk
0:02:23]} 21. axb5 {[%clk 0:02:46.3]} 21... axb5 {[%clk 0:02:23.5]} 22. Bf4
{[%clk 0:02:45.2]} 22... Re8 {[%clk 0:02:08.3]} 23. Ra5 {[%clk 0:02:45.6]} 23...
g5 {[%clk 0:02:04.8]} 24. Be3 {[%clk 0:02:45.3]} 24... Rc8 {[%clk 0:01:52]} 25.
Bb6 {[%clk 0:02:36.6]} 25... Kg7 {[%clk 0:01:43.9]} 26. e4 {[%clk 0:02:35.7]}
26... Rd6 {[%clk 0:01:17.9]} 27. Rxb5 {[%clk 0:02:31.7]} 27... Rb8 {[%clk
0:01:14.2]} 28. Bc7 {[%clk 0:02:21.4]} 28... Rxb5 {[%clk 0:01:13.7]} 29. Bxd6
{[%clk 0:02:22.8]} 29... Rxb2 {[%clk 0:00:50]} 30. Rxc4 {[%clk 0:02:23.5]} 30...
Re2 {[%clk 0:00:50]} 31. e5 {[%clk 0:02:18.9]} 31... Bd8 {[%clk 0:00:36.6]} 32.
Bc5 {[%clk 0:02:12.4]} 32... h5 {[%clk 0:00:30.1]} 33. Kf3 {[%clk 0:02:12]}
33... Re1 {[%clk 0:00:28.7]} 34. Be3 {[%clk 0:02:12.7]} 34... g4+ {[%clk
0:00:20.8]} 35. Kf4 {[%clk 0:02:13.6]} 35... Rh1 {[%clk 0:00:20.1]} 36. Kf5
{[%clk 0:02:13.1]} 36... Rxh2 {[%clk 0:00:15.6]} 37. Rc8 {[%clk 0:02:14.2]}
37... Be7 {[%clk 0:00:11.4]} 38. Rc7 {[%clk 0:02:10.5]} 38... Kf8 {[%clk
0:00:10.5]} 39. Rc8+ {[%clk 0:02:01.8]} 39... Kg7 {[%clk 0:00:11]} 40. Bd4
{[%clk 0:02:03.2]} 40... h4 {[%clk 0:00:06.5]} 41. e6+ {[%clk 0:02:03.4]} 41...
f6 {[%clk 0:00:07.2]} 42. Rc7 {[%clk 0:02:01.9]} 42... Kf8 {[%clk 0:00:06.4]}
43. Kg6 {[%clk 0:01:59.8]} 1-0

[Event "*** Titled Tuesday Blitz"]
[Site "Chess.com"]
[Date "2019.02.05"]
[Round "10"]
[White "playerorkinyo"]
[Black "BillForster"]
[Result "1-0"]
[WhiteElo "2326"]
[BlackElo "1722"]
[TimeControl "180+2"]
[EndTime "15:26:44 PST"]
[Termination "playerorkinyo won by resignation"]

1. d4 {[%clk 0:03:01.9]} 1... d5 {[%clk 0:02:59.4]} 2. c4 {[%clk 0:03:02.3]}
2... c6 {[%clk 0:02:59]} 3. Nf3 {[%clk 0:03:02.4]} 3... Nf6 {[%clk 0:02:59.5]}
4. e3 {[%clk 0:03:02.2]} 4... e6 {[%clk 0:02:58.4]} 5. Nbd2 {[%clk 0:03:00.6]}
5... Nbd7 {[%clk 0:02:53.8]} 6. b3 {[%clk 0:02:59.4]} 6... Bb4 {[%clk
0:02:48.6]} 7. Bb2 {[%clk 0:02:58]} 7... Ne4 {[%clk 0:02:46.8]} 8. a3 {[%clk
0:02:56.8]} 8... Bc3 {[%clk 0:02:32.8]} 9. Bxc3 {[%clk 0:02:53]} 9... Nxc3
{[%clk 0:02:32.3]} 10. Qc2 {[%clk 0:02:53.9]} 10... Ne4 {[%clk 0:02:15.3]} 11.
Nxe4 {[%clk 0:02:53.7]} 11... dxe4 {[%clk 0:02:16.2]} 12. Qxe4 {[%clk
0:02:55.2]} 12... Nf6 {[%clk 0:02:16.4]} 13. Qc2 {[%clk 0:02:56]} 13... O-O
{[%clk 0:02:16.2]} 14. Bd3 {[%clk 0:02:56.5]} 14... Qe7 {[%clk 0:02:09.4]} 15.
O-O {[%clk 0:02:56.2]} 15... c5 {[%clk 0:02:05.6]} 16. dxc5 {[%clk 0:02:55.3]}
16... Qxc5 {[%clk 0:02:04.7]} 17. b4 {[%clk 0:02:56.5]} 17... Qe7 {[%clk
0:02:04.2]} 18. Ne5 {[%clk 0:02:56]} 18... Bd7 {[%clk 0:02:02.2]} 19. Rfd1
{[%clk 0:02:52.4]} 19... Rfd8 {[%clk 0:02:00]} 20. c5 {[%clk 0:02:51.1]} 20...
Be8 {[%clk 0:01:59]} 21. Be2 {[%clk 0:02:46.9]} 21... Rac8 {[%clk 0:01:57.7]}
22. Bf3 {[%clk 0:02:46.3]} 22... b6 {[%clk 0:01:56.8]} 23. c6 {[%clk 0:02:45.9]}
23... Nd5 {[%clk 0:01:49.8]} 24. b5 {[%clk 0:02:41]} 24... f6 {[%clk 0:01:42.2]}
25. Bxd5 {[%clk 0:02:28.5]} 25... Rxd5 {[%clk 0:01:27.9]} 26. Rxd5 {[%clk
0:02:26.5]} 26... exd5 {[%clk 0:01:26]} 27. Nf3 {[%clk 0:02:25.6]} 27... Qc5
{[%clk 0:01:03.6]} 28. Nd4 {[%clk 0:02:09.1]} 28... a6 {[%clk 0:00:34.1]} 29. a4
{[%clk 0:02:05.7]} 29... axb5 {[%clk 0:00:21.1]} 30. axb5 {[%clk 0:02:04.7]}
30... Qb4 {[%clk 0:00:19.4]} 31. Qf5 {[%clk 0:01:44.4]} 31... Ra8 {[%clk
0:00:19]} 32. Qxd5+ {[%clk 0:01:29.9]} 32... Kh8 {[%clk 0:00:19.4]} 33. Rf1
{[%clk 0:01:27.7]} 33... Ra3 {[%clk 0:00:10.3]} 34. c7 {[%clk 0:01:18.9]} 1-0

[Event "*** Titled Tuesday Blitz"]
[Site "Chess.com"]
[Date "2019.02.05"]
[Round "10"]
[White "Supernotar"]
[Black "albi1999"]
[Result "1-0"]
[WhiteElo "2500"]
[BlackElo "2490"]
[TimeControl "180+2"]
[EndTime "15:26:50 PST"]
[Termination "Supernotar won by resignation"]

1. d4 {[%clk 0:03:00.4]} 1... d5 {[%clk 0:03:00.9]} 2. c4 {[%clk 0:03:00.5]}
2... e6 {[%clk 0:03:01.7]} 3. Nf3 {[%clk 0:03:01.1]} 3... Nf6 {[%clk 0:03:01.7]}
4. e3 {[%clk 0:03:02]} 4... b6 {[%clk 0:03:01]} 5. Nbd2 {[%clk 0:03:01.5]} 5...
Bd6 {[%clk 0:03:01.3]} 6. b3 {[%clk 0:03:01.7]} 6... O-O {[%clk 0:03:01.7]} 7.
Bb2 {[%clk 0:03:02.6]} 7... Bb7 {[%clk 0:03:03.1]} 8. Bd3 {[%clk 0:03:03]} 8...
Nbd7 {[%clk 0:03:04.7]} 9. Qe2 {[%clk 0:03:04.1]} 9... Ne4 {[%clk 0:03:05.8]}
10. O-O {[%clk 0:03:04.9]} 10... f5 {[%clk 0:03:05.9]} 11. cxd5 {[%clk
0:03:05.7]} 11... exd5 {[%clk 0:03:06.7]} 12. Ba6 {[%clk 0:03:06.9]} 12... Bxa6
{[%clk 0:03:04]} 13. Qxa6 {[%clk 0:03:07.3]} 13... Qe7 {[%clk 0:03:01.1]} 14.
Qb5 {[%clk 0:03:02.4]} 14... Ndf6 {[%clk 0:02:57.1]} 15. Qc6 {[%clk 0:02:45.3]}
15... Qe8 {[%clk 0:02:56.4]} 16. Rac1 {[%clk 0:02:35.4]} 16... Qxc6 {[%clk
0:02:56.1]} 17. Rxc6 {[%clk 0:02:35.8]} 17... Kf7 {[%clk 0:02:54.1]} 18. Rfc1
{[%clk 0:02:28.7]} 18... a5 {[%clk 0:02:50.9]} 19. a4 {[%clk 0:02:28.2]} 19...
Rfc8 {[%clk 0:02:40.6]} 20. Kf1 {[%clk 0:02:00.4]} 20... Ke8 {[%clk 0:02:39.9]}
21. Ke2 {[%clk 0:01:53.2]} 21... Ng8 {[%clk 0:02:36.3]} 22. R6c2 {[%clk
0:01:48.9]} 22... Ne7 {[%clk 0:02:33.1]} 23. Nb1 {[%clk 0:01:47.3]} 23... c6
{[%clk 0:02:30.4]} 24. Ba3 {[%clk 0:01:46]} 24... Bxa3 {[%clk 0:02:29.3]} 25.
Nxa3 {[%clk 0:01:46.8]} 25... Kd7 {[%clk 0:01:48.7]} 26. Ne5+ {[%clk 0:01:44.1]}
26... Kd6 {[%clk 0:01:50]} 27. f3 {[%clk 0:01:18.4]} 27... Nf6 {[%clk
0:01:51.1]} 28. Kd3 {[%clk 0:01:13.1]} 28... Nd7 {[%clk 0:01:51.3]} 29. Nxc6
{[%clk 0:01:05.6]} 29... Nxc6 {[%clk 0:01:36.1]} 30. Rxc6+ {[%clk 0:00:54.7]}
30... Rxc6 {[%clk 0:01:38]} 31. Nb5+ {[%clk 0:00:55]} 31... Ke6 {[%clk
0:01:39.2]} 32. Rxc6+ {[%clk 0:00:54.8]} 32... Ke7 {[%clk 0:01:41.1]} 33. Rd6
{[%clk 0:00:45.2]} 33... Rd8 {[%clk 0:01:35.2]} 34. Rxd5 {[%clk 0:00:36.5]}
34... Nc5+ {[%clk 0:01:35.4]} 35. Kc4 {[%clk 0:00:36.1]} 35... Rxd5 {[%clk
0:01:35.9]} 36. Kxd5 {[%clk 0:00:37.2]} 36... Nxb3 {[%clk 0:01:37.8]} 37. Kc6
{[%clk 0:00:33.8]} 37... Nd2 {[%clk 0:01:36]} 38. Na3 {[%clk 0:00:29.4]} 38...
Nf1 {[%clk 0:01:28]} 39. e4 {[%clk 0:00:28]} 39... f4 {[%clk 0:01:27.4]} 40. Kc7
{[%clk 0:00:23.2]} 40... Ne3 {[%clk 0:01:27.6]} 41. d5 {[%clk 0:00:23.5]} 1-0

[Event "*** Titled Tuesday Blitz"]
[Site "Chess.com"]
[Date "2019.02.05"]
[Round "10"]
[White "Kirill_Klukin"]
[Black "Maikrosoft63"]
[Result "1-0"]
[WhiteElo "2636"]
[BlackElo "2567"]
[TimeControl "180+2"]
[EndTime "15:26:53 PST"]
[Termination "Kirill_Klukin won by resignation"]

1. Nf3 {[%clk 0:03:00.9]} 1... Nf6 {[%clk 0:03:00.8]} 2. d4 {[%clk 0:03:01.3]}
2... e6 {[%clk 0:03:01.8]} 3. g3 {[%clk 0:02:58.3]} 3... a6 {[%clk 0:03:02.3]}
4. Bg2 {[%clk 0:02:59.3]} 4... b5 {[%clk 0:03:03.8]} 5. a4 {[%clk 0:02:57.5]}
5... b4 {[%clk 0:03:03.4]} 6. Ne5 {[%clk 0:02:58.2]} 6... d5 {[%clk 0:03:03.7]}
7. O-O {[%clk 0:02:59.1]} 7... Bb7 {[%clk 0:03:01.1]} 8. c3 {[%clk 0:02:57.9]}
8... a5 {[%clk 0:02:59.8]} 9. Nd2 {[%clk 0:02:58]} 9... Nbd7 {[%clk 0:02:59.7]}
10. Nd3 {[%clk 0:02:59.1]} 10... bxc3 {[%clk 0:02:51.3]} 11. bxc3 {[%clk
0:02:59.9]} 11... c5 {[%clk 0:02:52.5]} 12. Ba3 {[%clk 0:02:58.9]} 12... c4
{[%clk 0:02:15.6]} 13. Bxf8 {[%clk 0:02:58.2]} 13... Kxf8 {[%clk 0:02:16.5]} 14.
Ne5 {[%clk 0:02:49.6]} 14... Nxe5 {[%clk 0:01:54.6]} 15. dxe5 {[%clk 0:02:50.4]}
15... Nd7 {[%clk 0:01:56.5]} 16. Nxc4 {[%clk 0:02:51.2]} 16... Qc7 {[%clk
0:01:58.2]} 17. Nd6 {[%clk 0:02:32.5]} 17... Nxe5 {[%clk 0:01:58.9]} 18. Nxb7
{[%clk 0:02:33.7]} 18... Qxb7 {[%clk 0:02:00.8]} 19. Qd4 {[%clk 0:02:35.1]}
19... Qc7 {[%clk 0:01:55.1]} 20. Rab1 {[%clk 0:02:22.7]} 20... f6 {[%clk
0:01:42.2]} 21. f4 {[%clk 0:02:15.2]} 21... Nc4 {[%clk 0:00:36.1]} 22. f5 {[%clk
0:02:15.4]} 22... Ke7 {[%clk 0:00:28.7]} 23. fxe6 {[%clk 0:02:08.8]} 23... Rad8
{[%clk 0:00:29]} 24. Rb5 {[%clk 0:02:06.7]} 24... Ne5 {[%clk 0:00:11.7]} 25.
Rfb1 {[%clk 0:02:03.3]} 25... Rb8 {[%clk 0:00:12.3]} 26. Qxd5 {[%clk 0:01:57.1]}
26... Rxb5 {[%clk 0:00:03.8]} 27. Rxb5 {[%clk 0:01:51.4]} 27... Rd8 {[%clk
0:00:04.9]} 28. Rb7 {[%clk 0:01:42.4]} 28... Rxd5 {[%clk 0:00:05.4]} 29. Rxc7+
{[%clk 0:01:43.5]} 29... Kd6 {[%clk 0:00:04.7]} 30. e7 {[%clk 0:01:29.6]} 30...
Rd1+ {[%clk 0:00:05.5]} 31. Bf1 {[%clk 0:01:28.4]} 31... Kxc7 {[%clk 0:00:03.8]}
32. e8=Q {[%clk 0:01:29.3]} 32... Kd6 {[%clk 0:00:04.8]} 33. Qd8+ {[%clk
0:01:29.5]} 33... Nd7 {[%clk 0:00:06.5]} 34. Kf2 {[%clk 0:01:29.1]} 34... Rd5
{[%clk 0:00:06.6]} 35. Bh3 {[%clk 0:01:25.4]} 35... Kc6 {[%clk 0:00:07.1]} 36.
Qc8+ {[%clk 0:01:25.3]} 1-0

[Event "*** Titled Tuesday Blitz"]
[Site "Chess.com"]
[Date "2019.02.05"]
[Round "10"]
[White "matiss90"]
[Black "NateSolon"]
[Result "1-0"]
[WhiteElo "2477"]
[BlackElo "2534"]
[TimeControl "180+2"]
[EndTime "15:27:01 PST"]
[Termination "matiss90 won by checkmate"]

1. e4 {[%clk 0:03:01.9]} 1... c5 {[%clk 0:03:00.4]} 2. Nf3 {[%clk 0:03:02.9]}
2... d6 {[%clk 0:03:01.4]} 3. d4 {[%clk 0:03:04.4]} 3... cxd4 {[%clk 0:03:03.3]}
4. Nxd4 {[%clk 0:03:06]} 4... Nf6 {[%clk 0:03:04.5]} 5. Nc3 {[%clk 0:03:07.4]}
5... Nc6 {[%clk 0:03:05.9]} 6. Bc4 {[%clk 0:03:06.3]} 6... e6 {[%clk 0:03:06.4]}
7. Be3 {[%clk 0:03:07.1]} 7... a6 {[%clk 0:03:05.8]} 8. Qe2 {[%clk 0:03:08.1]}
8... Na5 {[%clk 0:02:55.6]} 9. Bd3 {[%clk 0:02:59.4]} 9... b5 {[%clk 0:02:49]}
10. g4 {[%clk 0:02:49.9]} 10... Bb7 {[%clk 0:02:42.3]} 11. g5 {[%clk 0:02:49.6]}
11... Nd7 {[%clk 0:02:43.4]} 12. b4 {[%clk 0:02:28.5]} 12... Rc8 {[%clk
0:02:34.8]} 13. bxa5 {[%clk 0:02:22.8]} 13... Rxc3 {[%clk 0:02:33.1]} 14. O-O
{[%clk 0:02:22.4]} 14... Be7 {[%clk 0:02:29.7]} 15. f4 {[%clk 0:02:13.1]} 15...
O-O {[%clk 0:02:19.2]} 16. Rf3 {[%clk 0:01:21.1]} 16... Nc5 {[%clk 0:02:08.1]}
17. Rh3 {[%clk 0:01:19.6]} 17... g6 {[%clk 0:02:01.3]} 18. Bd2 {[%clk
0:01:13.6]} 18... Ra3 {[%clk 0:02:00.5]} 19. Nb3 {[%clk 0:00:47.8]} 19... Nxb3
{[%clk 0:01:54]} 20. cxb3 {[%clk 0:00:48.5]} 20... d5 {[%clk 0:01:55.3]} 21. e5
{[%clk 0:00:36.8]} 21... Bc5+ {[%clk 0:01:55.4]} 22. Kf1 {[%clk 0:00:23.2]}
22... Bd4 {[%clk 0:01:50.8]} 23. Rd1 {[%clk 0:00:12.7]} 23... Rxa2 {[%clk
0:01:51.8]} 24. Qg4 {[%clk 0:00:05.5]} 24... Qe7 {[%clk 0:01:44.5]} 25. Qh4
{[%clk 0:00:05.2]} 25... h5 {[%clk 0:01:45.3]} 26. gxh6 {[%clk 0:00:05.8]} 26...
Qxh4 {[%clk 0:01:46.2]} 27. Rxh4 {[%clk 0:00:07.3]} 27... Kh7 {[%clk 0:01:42.2]}
28. Rg4 {[%clk 0:00:04.5]} 28... Rc8 {[%clk 0:01:40.9]} 29. h4 {[%clk
0:00:04.6]} 29... Kxh6 {[%clk 0:01:25.6]} 30. f5+ {[%clk 0:00:05.3]} 30... Rxd2
{[%clk 0:01:26.1]} 31. Rxd2 {[%clk 0:00:05.7]} 31... gxf5 {[%clk 0:01:25.9]} 32.
Rxd4 {[%clk 0:00:06.5]} 32... Rc3 {[%clk 0:01:22.5]} 33. Rg2 {[%clk 0:00:06]}
33... Rxb3 {[%clk 0:01:20.9]} 34. Ke2 {[%clk 0:00:06.4]} 34... f4 {[%clk
0:01:18.8]} 35. Rxf4 {[%clk 0:00:03.9]} 35... Rb2+ {[%clk 0:01:20.7]} 36. Kf1
{[%clk 0:00:03.9]} 36... Rb3 {[%clk 0:01:19.2]} 37. Rf6+ {[%clk 0:00:03.8]}
37... Kh5 {[%clk 0:01:20]} 38. Be2+ {[%clk 0:00:05]} 38... Kxh4 {[%clk 0:01:21]}
39. Rh6# {[%clk 0:00:06.1]} 1-0

[Event "*** Titled Tuesday Blitz"]
[Site "Chess.com"]
[Date "2019.02.05"]
[Round "10"]
[White "j2806"]
[Black "Morshynska"]
[Result "0-1"]
[WhiteElo "1810"]
[BlackElo "2070"]
[TimeControl "180+2"]
[EndTime "15:27:02 PST"]
[Termination "Morshynska won by resignation"]

1. e4 {[%clk 0:02:58.6]} 1... e5 {[%clk 0:03:00.4]} 2. Nf3 {[%clk 0:02:58.7]}
2... Nc6 {[%clk 0:03:01]} 3. Bb5 {[%clk 0:02:58.6]} 3... a6 {[%clk 0:03:01.9]}
4. Ba4 {[%clk 0:02:58.9]} 4... Nf6 {[%clk 0:03:02.4]} 5. d3 {[%clk 0:02:59.2]}
5... d6 {[%clk 0:03:01.5]} 6. c3 {[%clk 0:03:00.4]} 6... Bd7 {[%clk 0:03:02.2]}
7. O-O {[%clk 0:02:58.9]} 7... g6 {[%clk 0:03:03.5]} 8. Re1 {[%clk 0:02:52.8]}
8... Bg7 {[%clk 0:03:04.3]} 9. d4 {[%clk 0:02:40.1]} 9... O-O {[%clk 0:02:59.3]}
10. h3 {[%clk 0:02:35.3]} 10... Qe8 {[%clk 0:02:54.9]} 11. d5 {[%clk 0:02:28.5]}
11... Ne7 {[%clk 0:02:42.6]} 12. Bxd7 {[%clk 0:02:24.2]} 12... Nxd7 {[%clk
0:02:40.1]} 13. c4 {[%clk 0:02:22.9]} 13... h6 {[%clk 0:02:39.3]} 14. Nc3 {[%clk
0:02:18.1]} 14... f5 {[%clk 0:02:38]} 15. Bd2 {[%clk 0:02:11.6]} 15... f4 {[%clk
0:02:37.8]} 16. g3 {[%clk 0:02:00.8]} 16... g5 {[%clk 0:02:32.1]} 17. gxf4
{[%clk 0:01:56.4]} 17... exf4 {[%clk 0:02:23.1]} 18. Kh2 {[%clk 0:01:43.3]}
18... Ng6 {[%clk 0:02:20.2]} 19. Qe2 {[%clk 0:01:34.9]} 19... Kf7 {[%clk
0:02:08.1]} 20. Rg1 {[%clk 0:01:34]} 20... Bf6 {[%clk 0:01:56.1]} 21. Na4 {[%clk
0:01:22.6]} 21... b5 {[%clk 0:01:33.5]} 22. Nc3 {[%clk 0:01:14.6]} 22... b4
{[%clk 0:01:06.6]} 23. Na4 {[%clk 0:01:13.7]} 23... a5 {[%clk 0:01:01.2]} 24.
Rab1 {[%clk 0:01:12.2]} 24... Qe7 {[%clk 0:00:46.2]} 25. b3 {[%clk 0:01:08.2]}
25... Rae8 {[%clk 0:00:41.8]} 26. Rge1 {[%clk 0:01:06.6]} 26... h5 {[%clk
0:00:39.6]} 27. Nb2 {[%clk 0:00:59.2]} 27... g4 {[%clk 0:00:37.5]} 28. hxg4
{[%clk 0:00:58.7]} 28... hxg4 {[%clk 0:00:39.4]} 29. Ng1 {[%clk 0:00:56.9]}
29... Bxb2 {[%clk 0:00:32.8]} 30. Rxb2 {[%clk 0:00:49.1]} 30... Qh4+ {[%clk
0:00:33]} 31. Nh3 {[%clk 0:00:45.3]} 31... Qxh3+ {[%clk 0:00:32.5]} 32. Kg1
{[%clk 0:00:46.3]} 32... Rh8 {[%clk 0:00:31.4]} 0-1